fUST/lending_fUST_20250506
["ID","MTS","AMOUNT","RATE_DAILY","PERIOD"]
[360024140,1746485444556,-151.0,0.00024869,7]
[360024142,1746485444567,-153.285139,0.00024869,7]
[360024145,1746485444578,-151.0,0.00024869,7]
[360024147,1746485444589,-151.0,0.00024869,7]
[360024149,1746485444600,-151.0,0.00024869,7]
[360024151,1746485444611,-151.0,0.00024869,7]
[360024153,1746485444623,-604.701788,0.00024869,7]
[360024156,1746485444634,-604.701788,0.00024869,7]
[360024158,1746485444645,-7823.015753,0.00024869,2]
[360024160,1746485444657,-500.0,0.00024873,2]
[360024162,1746485444668,-150.0,0.00024873,2]
[360024164,1746485444678,-500.0,0.00024873,2]
[360024167,1746485444689,-521.27285301,0.00024873,2]
[360024169,1746485444700,-500.0,0.00024873,2]
[360024171,1746485444711,-505.66836437,0.00024873,2]
[360024173,1746485444722,-500.0,0.00024873,2]
[360024175,1746485444733,-500.0,0.00024873,2]
[360024178,1746485444747,-500.0,0.00024873,2]
[360024180,1746485444758,-500.0,0.00024873,2]
[360024182,1746485444769,-500.0,0.00024873,2]
[360024184,1746485444781,-500.0,0.00024873,2]
[360024186,1746485444792,-500.0,0.00024873,2]
[360024189,1746485444804,-500.0,0.00024873,2]
[360024191,1746485444815,-500.0,0.00024873,2]
[360024193,1746485444826,-500.0,0.00024873,2]
[360024195,1746485444838,-151.0,0.00024878,7]
[360024198,1746485444849,-286.508952,0.00024878,7]
[360024200,1746485444860,-286.508952,0.00024878,7]
[360024202,1746485444872,-151.0,0.00024878,7]
[360024204,1746485444883,-151.0,0.00024878,7]
[360024207,1746485444895,-151.0,0.00024878,7]
[360024209,1746485444907,-151.0,0.00024878,7]
[360024211,1746485444922,-183.176907,0.00024878,7]
[360024213,1746485444934,-183.176907,0.00024878,7]
[360024215,1746485444945,-206.028361,0.00024878,7]
[360024217,1746485444957,-151.0,0.00024878,7]
[360024220,1746485444968,-151.0,0.00024878,7]
[360024222,1746485444980,-151.0,0.00024878,7]
[360024224,1746485444994,-604.701788,0.00024878,7]
[360024226,1746485445006,-604.701788,0.00024878,7]
[360024228,1746485445017,-1278.53418256,0.0002488,2]
[360024231,1746485445029,-151.0,0.00024887,7]
[360024233,1746485445041,-151.0,0.00024887,7]
[360024235,1746485445052,-151.0,0.00024887,7]
[360024237,1746485445064,-151.0,0.00024887,7]
[360024239,1746485445075,-183.176907,0.00024887,7]
[360024242,1746485445089,-183.176907,0.00024887,7]
[360024244,1746485445101,-151.0,0.00024888,7]
[360024246,1746485445112,-151.0,0.00024888,7]
[360024248,1746485445124,-151.0,0.00024888,7]
[360024250,1746485445135,-151.0,0.00024888,7]
[360024253,1746485445146,-151.0,0.00024888,7]
[360024255,1746485445159,-151.0,0.00024888,7]
[360024257,1746485445171,-151.0,0.00024888,7]
[360024259,1746485445183,-286.508952,0.00024888,7]
[360024262,1746485445195,-286.508952,0.00024888,7]
[360024264,1746485445208,-868.58422,0.00024888,7]
[360024266,1746485445220,-868.58422,0.00024888,7]
[360024268,1746485445231,-151.0,0.0002489,7]
[360024270,1746485445242,-10228.2734605,0.0002489,2]
[360024272,1746485445253,-151.0,0.00024899,7]
[360024274,1746485445263,-151.0,0.00024899,7]
[360024276,1746485445272,-151.0,0.000249,7]
[360024278,1746485445282,-151.0,0.000249,7]
[360024280,1746485445292,-151.0,0.000249,7]
[360024282,1746485445302,-151.0,0.000249,7]
[360024284,1746485445312,-151.0,0.000249,7]
[360024286,1746485445321,-151.0,0.000249,7]
[360024317,1746485445588,-151.0,0.000249,7]
[360024320,1746485445607,-151.0,0.000249,7]
[360024322,1746485445616,-151.0,0.000249,7]
[360024325,1746485445626,-286.508952,0.000249,7]
[360024326,1746485445635,-286.508952,0.000249,7]
[360024328,1746485445645,-868.58422,0.000249,7]
[360024330,1746485445654,-868.58422,0.000249,7]
[360024333,1746485445664,-151.0,0.000249,7]
[360024335,1746485445674,-151.0,0.000249,7]
[360024337,1746485445683,-261.88072,0.000249,7]
[360024339,1746485445692,-151.0,0.000249,7]
[360024341,1746485445702,-183.176907,0.000249,7]
[360024342,1746485445711,-183.176907,0.000249,7]
[360024344,1746485445720,-151.0,0.000249,7]
[360024346,1746485445730,-151.0,0.000249,7]
[360024348,1746485445740,-151.0,0.000249,7]
[360024350,1746485445750,-151.0,0.000249,7]
[360024352,1746485445759,-151.0,0.000249,7]
[360024354,1746485445769,-604.701788,0.000249,7]
[360024356,1746485445778,-604.701788,0.000249,7]
[360024358,1746485445788,-7823.015753,0.000249,2]
[360024360,1746485445799,-151.0,0.000249,7]
[360024362,1746485445808,-372.861696,0.000249,7]
[360024365,1746485445818,-372.861696,0.000249,7]
[360024366,1746485445828,-266.945488,0.000249,7]
[360024368,1746485445837,-151.0,0.000249,7]
[360024370,1746485445847,-266.945488,0.000249,7]
[360024372,1746485445856,-151.0,0.000249,7]
[360024374,1746485445866,-151.0,0.000249,7]
[360024376,1746485445875,-151.0,0.000249,7]
[360024378,1746485445884,-151.0,0.000249,7]
[360024380,1746485445893,-151.0,0.000249,7]
[360024383,1746485445903,-151.0,0.000249,7]
[360024384,1746485445912,-153.247129,0.000249,7]
[360024386,1746485445923,-216.62517,0.000249,2]
[360024388,1746485445932,-216.62517,0.000249,2]
[360024390,1746485445942,-151.0,0.000249,7]
[360024392,1746485445952,-151.0,0.000249,7]
[360024395,1746485445961,-841.77443764,0.000249,7]
[360024397,1746485445970,-12607.13495863,0.000249,7]
[360024398,1746485445979,-160.0,0.000249,7]
[360024401,1746485445991,-348292.961211,0.000249,2]
[360024403,1746485446002,-160.0,0.000249,7]
[360024405,1746485446011,-151.0,0.000249,7]
[360024407,1746485446021,-151.0,0.000249,7]
[360024409,1746485446030,-421.83547488,0.000249,7]
[360024411,1746485446039,-151.0,0.000249,7]
[360024413,1746485446048,-155.196221,0.000249,7]
[360024415,1746485446058,-160.0,0.000249,7]
[360024417,1746485446067,-151.0,0.000249,7]
[360024419,1746485446076,-151.0,0.000249,7]
[360024421,1746485446085,-500.0,0.00024987,2]
[360024423,1746485446095,-1278.53418256,0.0002499,2]
[360024425,1746485446105,-500.0,0.00025,30]
[360024427,1746485446114,-500.0,0.00025,30]
[360024429,1746485446124,-624.7457988,0.00025,30]
[360024431,1746485446133,-655.30267091,0.00025,30]
[360024433,1746485446143,-500.0,0.00025,30]
[360024435,1746485446152,-500.0,0.00025,30]
[360024437,1746485446161,-941.38630309,0.00025,30]
[360024438,1746485446171,-500.0,0.00025,30]
[360024439,1746485446180,-500.0,0.00025,30]
[360024440,1746485446189,-2000.0,0.00025,14]
[360024441,1746485446198,-1352.0,0.00025,14]
[360024442,1746485446207,-500.0,0.00025,30]
[360024443,1746485446217,-19754.09760315,0.00025,7]
[360024444,1746485446227,-859.98622067,0.00025027,2]
[360024445,1746485446236,-151.0,0.000253,12]
[360024446,1746485446245,-3225.26490285,0.00025417,13]
[360024447,1746485446255,-823.0,0.00025419,2]
[360024448,1746485446264,-4403.34905348,0.00025446,2]
[360024449,1746485446274,-500.0,0.00025467,2]
[360024450,1746485446283,-500.0,0.00025467,2]
[360024451,1746485446292,-500.0,0.00025467,2]
[360024452,1746485446302,-445.2296475,0.00025467,2]
[360024453,1746485446311,-500.0,0.00025467,2]
[360024454,1746485446321,-500.0,0.00025467,2]
[360024455,1746485446331,-512.96597108,0.00025467,2]
[360024456,1746485446341,-500.0,0.00025467,2]
[360024457,1746485446351,-500.0,0.00025467,2]
[360024458,1746485446360,-500.0,0.00025467,2]
[360024459,1746485446370,-500.0,0.00025467,2]
[360024460,1746485446380,-500.0,0.00025467,2]
[360024461,1746485446389,-236.47896105,0.00025467,2]
[360024462,1746485446399,-151.90570102,0.00025467,2]
[360024463,1746485446409,-500.0,0.00025467,2]
[360024464,1746485446419,-500.0,0.00025467,2]
[360024465,1746485446429,-500.0,0.00025467,2]
[360024466,1746485446439,-500.0,0.00025467,2]
[360024467,1746485446448,-500.0,0.00025467,2]
[360024469,1746485446457,-500.0,0.00025467,2]
[360024471,1746485446466,-500.0,0.00025467,2]
[360024473,1746485446476,-500.0,0.00025467,2]
[360024475,1746485446485,-500.0,0.00025467,2]
[360024477,1746485446495,-500.0,0.00025467,2]
[360024479,1746485446504,-623.61212939,0.00025467,2]
[360024481,1746485446514,-500.0,0.00025467,2]
[360024483,1746485446523,-500.0,0.00025467,2]
[360024485,1746485446532,-500.0,0.00025467,2]
[360024487,1746485446542,-165.88066404,0.00025467,2]
[360024489,1746485446551,-500.0,0.00025467,2]
[360024491,1746485446560,-500.0,0.00025467,2]
[360024493,1746485446569,-554.99438125,0.00025467,2]
[360024495,1746485446578,-900.0,0.00025469,3]
[360024497,1746485446587,-7000.0,0.00025479,2]
[360024499,1746485446596,-1000.0,0.000255,2]
[360024500,1746485446606,-151.0,0.000258,18]
[360024503,1746485446616,-32592.64283498,0.00025867,3]
[360024505,1746485446625,-1000.0,0.00025867,2]
[360024507,1746485446635,-615.11645974,0.00025867,2]
[360024508,1746485446645,-1000.0,0.00025867,2]
[360024511,1746485446654,-554.87024308,0.00025867,2]
[360024512,1746485446663,-1000.0,0.00025867,2]
[360024514,1746485446675,-1000.0,0.00025867,2]
[360024516,1746485446685,-1000.0,0.00025867,2]
[360024518,1746485446695,-1000.0,0.00025867,2]
[360024520,1746485446704,-1000.0,0.00025867,2]
[360024522,1746485446713,-458.60079424,0.00025867,2]
[360024524,1746485446723,-164.4802,0.00025867,2]
[360024526,1746485446731,-1000.0,0.00025867,2]
[360024528,1746485446741,-1000.0,0.00025965,2]
[360024530,1746485446751,-1000.0,0.00025965,2]
[360024532,1746485446760,-151.0,0.0002599,7]
[360024534,1746485446769,-1278.53418256,0.0002599,2]
[360024536,1746485446778,-3813.0,0.00026,2]
[360024538,1746485446788,-13757.70279544,0.00026,10]
[360024540,1746485446798,-518.31942011,0.00026,2]
[360024542,1746485446807,-463.29068373,0.00026,2]
[360024544,1746485446817,-152.037008,0.00026,7]
[360024546,1746485446827,-151.0,0.00026,7]
[360024548,1746485446836,-351.802146,0.00026,7]
[360024550,1746485446845,-351.802146,0.00026,7]
[360024552,1746485446855,-151.0,0.00026,7]
[360024554,1746485446864,-266.945488,0.00026,7]
[360024556,1746485446874,-151.0,0.00026,7]
[360024558,1746485446883,-266.945488,0.00026,7]
[360024560,1746485446893,-151.0,0.00026,7]
[360024562,1746485446902,-151.0,0.00026,7]
[360024564,1746485446911,-151.0,0.00026,7]
[360024566,1746485446923,-151.0,0.00026,7]
[360024568,1746485446932,-511.985475,0.00026,7]
[360024570,1746485446941,-511.985475,0.00026,7]
[360024572,1746485446950,-151.0,0.00026,7]
[360024573,1746485446962,-151.0,0.00026,7]
[360024576,1746485446972,-216.62517,0.00026,2]
[360024577,1746485446981,-216.62517,0.00026,2]
[360024579,1746485446993,-151.0,0.00026,7]
[360024581,1746485447004,-152.864391,0.00026,7]
[360024583,1746485447013,-151.000002,0.00026,7]
[360024585,1746485447022,-151.0,0.00026,7]
[360024587,1746485447032,-151.0,0.00026,7]
[360024589,1746485447041,-151.0,0.00026,7]
[360024591,1746485447051,-233.374285,0.00026,7]
[360024593,1746485447060,-151.0,0.00026,7]
[360024595,1746485447069,-233.374285,0.00026,7]
[360024597,1746485447079,-151.0,0.00026,7]
[360024599,1746485447088,-151.0,0.00026,7]
[360024601,1746485447100,-151.0,0.00026,7]
[360024603,1746485447109,-151.0,0.00026,7]
[360024605,1746485447118,-267.782475,0.00026,7]
[360024607,1746485447128,-267.782475,0.00026,7]
[360024609,1746485447138,-151.0,0.00026,7]
[360024611,1746485447148,-275.282959,0.00026,7]
[360024613,1746485447163,-151.0,0.00026,7]
[360024615,1746485447173,-841.77443764,0.00026,10]
[360024617,1746485447182,-151.0,0.00026,7]
[360024619,1746485447192,-12607.13495863,0.00026,10]
[360024621,1746485447202,-180.178893,0.00026,7]
[360024623,1746485447215,-180.178893,0.00026,7]
[360024625,1746485447228,-151.0,0.00026,7]
[360024627,1746485447239,-151.0,0.00026,7]
[360024629,1746485447249,-151.0,0.00026,7]
[360024631,1746485447258,-421.83547488,0.00026,10]
[360024633,1746485447268,-160.0,0.00026,10]
[360024635,1746485447278,-151.0,0.00026,7]
[360024637,1746485447287,-151.0,0.00026,7]
[360024639,1746485447296,-182.23035355,0.00026,10]
[360024641,1746485447306,-500.0,0.00026,30]
[360024643,1746485447315,-500.0,0.00026,30]
[360024645,1746485447325,-998.26316889,0.00026,30]
[360024647,1746485447336,-509.83832285,0.00026,30]
[360024649,1746485447346,-500.0,0.00026,30]
[360024651,1746485447356,-500.0,0.00026,30]
[360024652,1746485447366,-238.0723156,0.00026,30]
[360024654,1746485447375,-500.0,0.00026,30]
[360024656,1746485447385,-507.17854274,0.00026,30]
[360024658,1746485447395,-500.0,0.00026,30]
[360024660,1746485447405,-500.0,0.00026,30]
[360024662,1746485447414,-500.0,0.00026,30]
[360024664,1746485447423,-500.0,0.00026,30]
[360024666,1746485447433,-500.0,0.00026,30]
[360024668,1746485447442,-500.0,0.00026,30]
[360024670,1746485447452,-500.0,0.00026,30]
[360024672,1746485447462,-500.0,0.00026,30]
[360024674,1746485447471,-500.0,0.00026,30]
[360024676,1746485447481,-500.0,0.00026,30]
[360024678,1746485447490,-500.0,0.00026,30]
[360024680,1746485447500,-720.81526886,0.00026,30]
[360024681,1746485447511,-160.0,0.00026,30]
[360024682,1746485447521,-421.83547488,0.00026,30]
[360024683,1746485447531,-841.77443764,0.0002601,30]
[360024684,1746485447540,-7478.0035004,0.0002601,30]
[360024689,1746485447757,-3029.96301086,0.0002601,30]
[360024693,1746485447778,-2099.16844737,0.0002601,30]
[360024695,1746485447788,-160.0,0.0002601,30]
[360024697,1746485447798,-160.0,0.0002601,3]
[360024699,1746485447807,-151.0,0.0002601,7]
[360024701,1746485447817,-182.23035355,0.0002601,30]
[360024703,1746485447827,-182.23035355,0.0002601,3]
[360024704,1746485447837,-160.0,0.00026027,2]
[360024706,1746485447846,-208.306755,0.00026027,2]
[360024708,1746485447856,-3225.26490285,0.00026107,14]
[360024711,1746485447866,-500.0,0.00026259,2]
[360024712,1746485447876,-151.0,0.000263,18]
[360024714,1746485447885,-4767.20420592,0.00026301,2]
[360024716,1746485447896,-500.0,0.00026302,2]
[360024718,1746485447906,-160.0,0.0002631,3]
[360024720,1746485447918,-160.0,0.0002631,3]
[360024722,1746485447928,-421.83547488,0.0002631,3]
[360024724,1746485447938,-372.861696,0.00026575,7]
[360024726,1746485447948,-372.861696,0.00026575,7]
[360024728,1746485447958,-4403.34905348,0.00026628,2]
[360024730,1746485447968,-151.0,0.00026728,7]
[360024732,1746485447978,-19489.61487101,0.0002673,2]
[360024746,1746485448381,-1415.57946868,0.0002673,2]
[360024768,1746485448758,-74.89296621,0.0002673,2]
[360024801,1746485526080,-203.39226991,0.00018344,2]
[360024802,1746485533633,-179.0,0.00018344,2]
[360024803,1746485537987,-288.41817024,0.00018344,2]
[360024804,1746485541212,-201.28856704,0.00018344,2]
[360024805,1746485544289,382.39226991,0.00021,10]
[360024806,1746485544550,-127.90099281,0.00018344,2]
[360024807,1746485544586,-38.09542529,0.00018444,2]
[360024808,1746485552132,-211.90457471,0.00018444,2]
[360024810,1746485599523,-161.19478468,0.00018344,2]
[360024811,1746485603828,-263.96280926,0.00018344,2]
[360024812,1746485609296,-259.40174932,0.00018344,2]
[360024813,1746485612534,-267.53463743,0.00018344,2]
[360024814,1746485617924,-47.90601931,0.00018344,2]
[360024815,1746485725463,-280.21079707,0.00018665,2]
[360024817,1746485732228,-261.81117717,0.00018665,2]
[360024818,1746485738728,-161.0,0.00018665,2]
[360024819,1746485742589,-243.7732074,0.00018665,2]
[360024820,1746485745432,-333.41561543,0.00018665,2]
[360024829,1746486241115,-207.3951496,0.00018417,2]
[360024830,1746486241148,-91.8263476,0.00018417,2]
[360024831,1746486246596,-182.1060237,0.00018417,2]
[360024832,1746486249941,-175.69,0.00018417,2]
[360024833,1746486252620,-291.79522471,0.00018417,2]
[360024834,1746486252652,-83.60663909,0.00018564,2]
[360024835,1746486258264,-87.13388305,0.00018564,2]
[360024836,1746486258296,-64.56425315,0.00018581,2]
[360024837,1746486303152,3200.0,0.00018,2]
[360024841,1746486337131,1523.0695386,0.00018016,2]
[360024846,1746486463121,474.9805271,0.00017664,2]
[360024847,1746486543410,24900.0,0.00017664,2]
[360024851,1746486555945,-193.09858075,0.00018481,2]
[360024884,1746486632132,-217.4365243,0.00018481,2]
[360024888,1746486632154,-35.47210347,0.00018481,2]
[360024890,1746486632164,-173.32496095,0.00018581,2]
[360024892,1746486632173,-502.90072755,0.00018641,2]
[360024894,1746486632183,-300.0,0.00018661,2]
[360024896,1746486632193,-300.0,0.00018662,2]
[360024898,1746486632203,-300.0,0.00018662,2]
[360024900,1746486632213,-300.0,0.00018662,2]
[360024902,1746486632222,-300.0,0.00018662,2]
[360024904,1746486632231,-1200.0,0.00018662,2]
[360024906,1746486632240,-22.99007375,0.00018663,2]
[360024909,1746486632257,-477.00992625,0.00018663,2]
[360024911,1746486632267,-358.50112961,0.00018663,2]
[360024913,1746486632276,-500.0,0.00018663,2]
[360024915,1746486632285,-556.23016153,0.00018663,2]
[360024917,1746486632295,-500.0,0.00018663,2]
[360024919,1746486632304,-500.0,0.00018663,2]
[360024921,1746486632314,-500.0,0.00018663,2]
[360024923,1746486632324,-500.0,0.00018663,2]
[360024925,1746486632333,-420.79406917,0.00018663,2]
[360024927,1746486632343,-500.0,0.00018663,2]
[360024929,1746486632352,-500.0,0.00018663,2]
[360024931,1746486632362,-500.0,0.00018663,2]
[360024933,1746486632371,-500.0,0.00018663,2]
[360024935,1746486632381,-417.33014812,0.00018663,2]
[360024937,1746486632390,-500.0,0.00018663,2]
[360024939,1746486632399,-500.0,0.00018663,2]
[360024942,1746486632410,-500.0,0.00018663,2]
[360024944,1746486632420,-500.0,0.00018663,2]
[360024946,1746486632429,-500.0,0.00018663,2]
[360024948,1746486632438,-500.0,0.00018663,2]
[360024967,1746486632626,-500.0,0.00018663,2]
[360024969,1746486632637,-500.0,0.00018663,2]
[360024971,1746486632646,-500.0,0.00018663,2]
[360024973,1746486632655,-500.0,0.00018663,2]
[360024975,1746486632664,-500.0,0.00018663,2]
[360024977,1746486632673,-500.0,0.00018663,2]
[360024978,1746486632683,-500.0,0.00018663,2]
[360024980,1746486632693,-500.0,0.00018663,2]
[360024982,1746486632702,-500.0,0.00018663,2]
[360024983,1746486632711,-500.0,0.00018663,2]
[360024984,1746486632722,-500.0,0.00018663,2]
[360024985,1746486632732,-500.0,0.00018663,2]
[360024986,1746486632741,-500.0,0.00018663,2]
[360024987,1746486632751,-500.0,0.00018663,2]
[360024988,1746486632760,-500.0,0.00018663,2]
[360024989,1746486632770,-500.0,0.00018663,2]
[360024990,1746486632780,-500.0,0.00018663,2]
[360024991,1746486632791,-500.0,0.00018663,2]
[360024992,1746486632801,-500.0,0.00018663,2]
[360024993,1746486632811,-500.0,0.00018663,2]
[360024994,1746486632821,-500.0,0.00018663,2]
[360024995,1746486632830,-500.0,0.00018663,2]
[360024996,1746486632841,-500.0,0.00018663,2]
[360024997,1746486632852,-500.0,0.00018663,2]
[360024998,1746486632864,-500.0,0.00018663,2]
[360024999,1746486632875,-500.0,0.00018663,2]
[360025000,1746486632884,-500.0,0.00018663,2]
[360025001,1746486632894,-500.0,0.00018663,2]
[360025002,1746486632903,-500.0,0.00018663,2]
[360025003,1746486632913,-500.0,0.00018663,2]
[360025004,1746486632922,-500.0,0.00018663,2]
[360025005,1746486632931,-500.0,0.00018663,2]
[360025006,1746486632941,-500.0,0.00018663,2]
[360025007,1746486632950,-500.0,0.00018663,2]
[360025008,1746486632959,-500.0,0.00018663,2]
[360025009,1746486632968,-500.0,0.00018663,2]
[360025010,1746486632978,-500.0,0.00018663,2]
[360025011,1746486632987,-500.0,0.00018663,2]
[360025012,1746486632996,-500.0,0.00018663,2]
[360025013,1746486633006,-500.0,0.00018663,2]
[360025014,1746486633015,-500.0,0.00018663,2]
[360025015,1746486633024,-500.0,0.00018663,2]
[360025016,1746486633034,-500.0,0.00018663,2]
[360025017,1746486633044,-500.0,0.00018663,2]
[360025018,1746486633053,-500.0,0.00018663,2]
[360025019,1746486633063,-500.0,0.00018663,2]
[360025020,1746486633072,-500.0,0.00018663,2]
[360025021,1746486633082,-500.0,0.00018663,2]
[360025022,1746486633091,-500.0,0.00018663,2]
[360025023,1746486633101,-500.0,0.00018663,2]
[360025024,1746486633110,-208.75404899,0.00018663,2]
[360025025,1746486633120,-500.0,0.00018663,2]
[360025026,1746486633129,-500.0,0.00018663,2]
[360025027,1746486633139,-500.0,0.00018663,2]
[360025028,1746486633149,-500.0,0.00018663,2]
[360025029,1746486633158,-500.0,0.00018663,2]
[360025030,1746486633168,-500.0,0.00018663,2]
[360025031,1746486633177,-434.25814218,0.00018663,2]
[360025032,1746486633394,-65.74185782,0.00018663,2]
[360025033,1746486633404,-500.0,0.00018663,2]
[360025034,1746486633413,-90.0595867,0.00018663,2]
[360025035,1746486633425,-409.9404133,0.00018663,2]
[360025036,1746486633435,-500.0,0.00018663,2]
[360025037,1746486633444,-350.0,0.00018663,2]
[360025038,1746486633453,-500.0,0.00018663,2]
[360025039,1746486633463,-500.0,0.00018663,2]
[360025040,1746486633473,-500.0,0.00018663,2]
[360025041,1746486633483,-500.0,0.00018663,2]
[360025042,1746486633492,-500.0,0.00018663,2]
[360025043,1746486633502,-466.534856,0.00018663,2]
[360025044,1746486633511,-500.0,0.00018663,2]
[360025045,1746486633521,-499.99999999,0.00018663,2]
[360025046,1746486633531,-4571.61456171,0.00018664,2]
[360025047,1746486633573,-7657.48670911,0.00018664,2]
[360025048,1746486633584,-37770.89872918,0.00018664,2]
[360025049,1746486633593,-8719.78920293,0.00018665,2]
[360025050,1746486633606,-191.153377,0.00019178,2]
[360025051,1746486633616,-2031.16289452,0.000195,2]
[360025052,1746486633627,-2530.1182269,0.000195,2]
[360025053,1746486633640,-200.13432905,0.00019566,2]
[360025054,1746486633656,-1000.0,0.00019566,2]
[360025055,1746486633670,-250.0,0.00019568,2]
[360025056,1746486633683,-8000.0,0.0002,2]
[360025057,1746486633695,-160.0,0.0002,3]
[360025058,1746486633709,-238.52468393,0.00020101,2]
[360025059,1746486633722,-300.0,0.00020349,2]
[360025060,1746486633736,-168.0,0.00020349,2]
[360025061,1746486633749,-300.0,0.00020349,2]
[360025062,1746486633762,-420.0,0.00020349,2]
[360025063,1746486633776,-1200.0,0.00020448,2]
[360025064,1746486633789,-476.208524,0.00020726,2]
[360025065,1746486633802,-5000.0,0.00021,2]
[360025066,1746486633816,-500.0,0.00021918,2]
[360025067,1746486633828,-632.84488184,0.00021918,2]
[360025068,1746486633842,-5000.0,0.00022,2]
[360025069,1746486633856,-160.0,0.00022,7]
[360025070,1746486633868,-182.23035355,0.00022,7]
[360025071,1746486633879,-841.77443764,0.00022,7]
[360025072,1746486633890,-12607.13495863,0.00022,7]
[360025073,1746486633903,-160.0,0.00022,7]
[360025074,1746486633916,-500.0,0.00022053,2]
[360025075,1746486633929,-500.0,0.00022053,2]
[360025076,1746486633942,-360.72500622,0.00022053,2]
[360025119,1746486638420,-139.27499378,0.00022053,2]
[360025121,1746486638433,-251.21,0.00022133,3]
[360025123,1746486638445,-753.66,0.00022133,3]
[360025126,1746486638456,-587.0,0.00022188,2]
[360025128,1746486638467,-151.0,0.00022273,2]
[360025130,1746486638477,-151.0,0.00022273,2]
[360025132,1746486638487,-207.4,0.00022273,2]
[360025134,1746486638496,-500.0,0.00022394,2]
[360025136,1746486638505,-57.03733882,0.00022394,2]
[360025138,1746486638517,-442.96266118,0.00022394,2]
[360025140,1746486638527,-500.0,0.00022394,2]
[360025142,1746486638536,-500.0,0.00022417,2]
[360025144,1746486638546,-500.0,0.00022417,2]
[360025146,1746486638556,-367.69465666,0.00022417,2]
[360025148,1746486638565,-500.0,0.00022523,2]
[360025150,1746486638575,-500.0,0.00022564,2]
[360025152,1746486638586,-406.7208754,0.00022564,2]
[360025154,1746486638596,-160.0,0.00022981,2]
[360025181,1746486638608,-160.0,0.00022981,2]
[360025185,1746486638874,-160.0,0.00022992,2]
[360025188,1746486638888,-5000.0,0.00023,2]
[360025189,1746486638897,-5000.0,0.00023,2]
[360025191,1746486638907,-504.79419901,0.00023065,2]
[360025194,1746486638916,-500.0,0.00023065,2]
[360025195,1746486638925,-378.17341927,0.00023065,2]
[360025197,1746486638935,-412.67142178,0.00023065,2]
[360025199,1746486638943,-500.0,0.00023065,2]
[360025201,1746486638953,-500.0,0.00023065,2]
[360025203,1746486638962,-500.0,0.00023065,2]
[360025205,1746486638971,-500.0,0.00023065,2]
[360025207,1746486638981,-500.0,0.00023065,2]
[360025209,1746486638990,-500.0,0.00023065,2]
[360025211,1746486639000,-500.0,0.00023065,2]
[360025213,1746486639009,-170.186632,0.00023276,2]
[360025215,1746486639019,-500.0,0.00023276,2]
[360025218,1746486639028,-502.42,0.00023503,3]
[360025220,1746486639038,-151.0,0.00023642,2]
[360025222,1746486639047,-215.0738,0.00023642,2]
[360025224,1746486639056,-191.153377,0.00023744,2]
[360025225,1746486639066,-500.0,0.00023835,2]
[360025228,1746486639075,-375.47313385,0.000239,2]